bitfinex/quotes_SOLUSD_20250830
["timestamp","ask_amount","ask_price","bid_price","bid_amount"]
[1756562961480,9.77356898,199.44,199.43,0.03]
[1756562961771,10.35356898,199.44,199.43,0.03]
[1756562962180,9.77356898,199.44,199.43,0.03]
[1756562962392,10.35356898,199.44,199.43,0.03]
[1756562962673,23.94916299,199.44,199.43,0.03]
[1756562963580,24.00916299,199.44,199.43,0.03]
[1756562964856,28.0322596,199.44,199.43,0.03]
[1756562966856,54.0322596,199.44,199.43,0.03]
[1756562967191,28.0322596,199.44,199.43,0.03]
[1756562967988,58.2422596,199.44,199.43,0.03]
[1756562968181,28.0322596,199.44,199.43,0.03]
[1756562969681,4.28039099,199.44,199.43,0.74]
[1756562969984,4.81952967,199.44,199.43,0.74]
[1756562970984,30.81952967,199.44,199.43,0.74]
[1756562973866,4.81952967,199.44,199.43,0.74]
[1756562985477,3.81952967,199.44,199.43,0.74]
[1756562987885,3.81952967,199.44,199.43,0.03]
[1756562988104,30.39952967,199.44,199.43,0.03]
[1756562988401,35.41356898,199.44,199.43,0.03]
[1756562988907,34.83356898,199.44,199.43,0.03]
[1756562989597,53.23159257,199.44,199.43,0.03]
[1756562989796,13.59559401,199.43,199.42,0.03]
[1756562990102,23.11465335,199.42,199.41,0.03]
[1756562990280,27.91851836,199.42,199.41,0.03]
[1756562990481,28.70919552,199.42,199.41,0.03]
[1756562991110,28.70919552,199.42,199.36,0.2]
[1756562991111,26.0,199.39,199.36,0.2]
[1756562991275,44.35512368,199.37,199.36,0.2]
[1756562991695,50.57804976,199.37,199.36,0.2]
[1756562992201,44.93512368,199.37,199.36,0.2]
[1756562992706,13.59559401,199.32,199.3,0.03]
[1756562992902,18.35512368,199.31,199.3,0.03]
[1756562994108,44.35512368,199.31,199.3,0.03]
[1756562994609,28.71196306,199.31,199.3,0.03]
[1756562996700,28.13196306,199.31,199.3,0.03]
[1756562996894,28.71196306,199.31,199.3,0.03]
[1756562997891,28.13196306,199.31,199.3,0.03]
[1756563001111,18.35512368,199.31,199.3,0.74]
[1756563001487,44.35512368,199.31,199.3,0.74]
[1756563001698,18.35512368,199.31,199.3,0.74]
[1756563001908,26.0,199.32,199.3,0.74]
[1756563002209,4.75952967,199.31,199.3,0.03]
[1756563002713,9.77683938,199.31,199.3,0.03]
[1756563003092,49.37243339,199.31,199.3,0.03]
[1756563005325,49.37243339,199.31,199.3,0.72]
[1756563005326,30.75952967,199.31,199.3,0.72]
[1756563005498,30.75952967,199.31,199.3,0.03]
[1756563005696,35.77683938,199.31,199.3,0.03]
[1756563005890,35.77683938,199.31,199.3,0.72]
[1756563006911,35.77683938,199.31,199.3,0.03]
[1756563008601,35.77683938,199.31,199.3,0.72]
[1756563009321,67.67196306,199.31,199.3,0.03]
[1756563009525,39.59559401,199.3,199.29,0.2]
[1756563009703,49.11465335,199.3,199.29,0.2]
[1756563009904,49.11465335,199.3,199.29,0.89]
[1756563010219,49.11465335,199.3,199.29,0.2]
[1756563010622,54.13221481,199.3,199.29,0.89]
[1756563011408,54.13221481,199.3,199.29,0.2]
[1756563011609,28.13221481,199.3,199.26,0.03]
[1756563011922,28.13221481,199.3,199.23,0.2]
[1756563011923,26.0,199.24,199.23,0.2]
[1756563012120,30.75952967,199.24,199.23,0.2]
[1756563012321,35.77860214,199.24,199.23,0.2]
[1756563012629,30.75952967,199.24,199.23,0.89]
[1756563013126,35.77860214,199.24,199.23,0.89]
[1756563014721,35.77860214,199.24,199.23,0.2]
[1756563015330,49.37419615,199.24,199.23,0.2]
[1756563016898,49.95419615,199.24,199.23,0.2]
[1756563018423,5.01957634,199.22,199.21,0.03]
[1756563018599,28.13422969,199.22,199.21,0.03]
[1756563018806,28.71422969,199.22,199.21,0.03]
[1756563019223,26.0,199.18,199.13,0.69]
[1756563019419,13.59559401,199.21,199.13,0.69]
[1756563019420,4.75952967,199.14,199.13,0.69]
[1756563020209,4.75952967,199.15,199.13,0.69]
[1756563020515,30.75952967,199.15,199.13,0.69]
[1756563020718,4.75952967,199.14,199.13,0.69]
[1756563024030,26.0,199.14,199.13,0.69]
[1756563024232,4.75952967,199.14,199.13,0.69]
[1756563025323,30.75952967,199.14,199.13,0.69]
[1756563026647,4.75952967,199.14,199.13,0.69]
[1756563026817,4.75952967,199.15,199.13,0.69]
[1756563027234,2.62521698,199.19,199.13,5.71181484]
[1756563027445,2.62521698,199.19,199.14,39.67]
[1756563027446,4.75952967,199.19,199.14,39.67]
[1756563027613,4.75952967,199.2,199.15,0.69]
[1756563028018,4.75952967,199.19,199.15,0.69]
[1756563028640,4.75952967,199.18,199.15,5.7112596]
[1756563028829,4.75952967,199.17,199.16,0.69]
[1756563029337,4.75952967,199.18,199.16,0.69]
[1756563029543,26.0,199.21,199.16,0.69]
[1756563029728,16.22029544,199.24,199.17,4.75952967]
[1756563029930,4.75952967,199.21,199.18,0.69]
[1756563030137,4.75952967,199.2,199.18,0.69]
[1756563030340,4.75952967,199.2,199.19,0.69]
[1756563031148,4.75952967,199.21,199.19,0.69]
[1756563031954,4.75952967,199.21,199.2,0.66]
[1756563033533,30.75952967,199.22,199.2,0.66]
[1756563033732,26.0,199.24,199.2,0.66]
[1756563033934,26.0,199.24,199.21,0.66]
[1756563034138,4.75952967,199.23,199.21,0.66]
[1756563034658,2.62452673,199.26,199.22,0.66]
[1756563034838,4.75952967,199.26,199.21,9.77928035]
[1756563035155,30.75952967,199.26,199.23,0.66]
[1756563035463,26.0,199.25,199.24,0.66]
[1756563036559,30.75952967,199.25,199.2,4.78952967]
[1756563036746,4.75952967,199.24,199.21,0.66]
[1756563037063,26.0,199.24,199.21,0.66]
[1756563037270,0.06,199.26,199.22,5.41952967]
[1756563037570,0.06,199.26,199.23,0.66]
[1756563038573,0.06,199.26,199.23,5.41952967]
[1756563038866,0.06,199.26,199.24,0.66]
[1756563039059,0.06,199.26,199.24,10.43859812]
[1756563039259,0.06,199.26,199.25,4.75952967]
[1756563039459,0.06,199.26,199.25,5.41952967]
[1756563040950,0.06,199.26,199.2,0.03]
[1756563041183,4.81952967,199.26,199.21,39.62]
[1756563041387,4.81952967,199.26,199.22,0.66]
[1756563041555,4.81952967,199.26,199.21,43.71952967]
[1756563041758,4.81952967,199.26,199.23,0.66]
[1756563041958,4.81952967,199.26,199.21,43.71952967]
[1756563042264,4.81952967,199.26,199.22,0.66]
[1756563042667,0.06,199.26,199.23,0.66]
[1756563043071,0.06,199.26,199.24,0.66]
[1756563043393,4.81952967,199.26,199.24,0.66]
[1756563043576,4.81952967,199.26,199.21,43.71952967]
[1756563043784,4.81952967,199.26,199.24,0.66]
[1756563044078,5.33952967,199.25,199.2,0.03]
[1756563044254,4.75952967,199.23,199.21,38.96]
[1756563044456,4.75952967,199.23,199.2,0.03]
[1756563044653,4.75952967,199.22,199.2,38.99]
[1756563045073,30.75952967,199.24,199.21,0.66]
[1756563045270,35.77876159,199.24,199.22,0.66]
[1756563045472,4.75952967,199.23,199.2,39.65]
[1756563045672,4.75952967,199.23,199.21,0.66]
[1756563046177,4.75952967,199.23,199.2,38.99]
[1756563046382,30.75952967,199.24,199.21,0.66]
[1756563048786,4.75952967,199.23,199.21,0.66]
[1756563049278,4.75952967,199.23,199.2,38.99]
[1756563049475,4.75952967,199.23,199.2,0.03]
[1756563049476,4.75952967,199.22,199.2,0.03]
[1756563049660,30.75952967,199.21,199.2,0.03]
[1756563049863,31.33952967,199.21,199.2,0.03]
[1756563050066,49.69465335,199.21,199.2,0.03]
[1756563050370,55.92709785,199.21,199.2,0.03]
[1756563051385,9.77986201,199.19,199.18,0.03]
[1756563051581,52.96010436,199.19,199.18,0.03]
[1756563051778,53.54010436,199.19,199.16,0.03]
[1756563051979,44.35512368,199.17,199.16,0.03]
[1756563052361,49.15536603,199.17,199.16,0.03]
[1756563052562,44.93512368,199.17,199.16,0.03]
[1756563052985,65.05903915,199.17,199.16,0.03]
[1756563053189,26.0,199.13,199.1,0.2]
[1756563053389,4.75952967,199.11,199.1,0.2]
[1756563053580,8.97900085,199.11,199.1,0.2]
[1756563054081,4.75952967,199.11,199.1,0.86]
[1756563054902,4.75952967,199.11,199.1,0.2]
[1756563055103,9.78187912,199.11,199.1,0.2]
[1756563055402,4.75952967,199.11,199.1,0.2]
[1756563057091,4.75952967,199.11,199.1,0.86]
[1756563061000,9.78187912,199.11,199.1,0.2]
[1756563061317,4.75952967,199.11,199.1,0.89]
[1756563061515,4.75952967,199.11,199.1,0.2]
[1756563063098,9.78187912,199.11,199.1,0.2]
[1756563064294,10.36187912,199.11,199.1,0.2]
[1756563065017,28.7170028,199.11,199.1,0.2]
[1756563065395,43.8254058,199.11,199.1,0.2]
[1756563066320,39.06587613,199.11,199.1,0.2]
[1756563066502,41.69241502,199.11,199.1,0.2]
[1756563066703,46.45194469,199.11,199.1,0.2]
[1756563067319,43.8254058,199.11,199.1,0.2]
[1756563071408,43.8254058,199.11,199.02,0.69]
[1756563071409,39.59559401,199.07,199.02,0.69]
[1756563071608,4.75952967,199.03,199.02,0.69]
[1756563072207,45.87097667,199.03,199.02,0.69]
[1756563072606,30.75952967,199.03,199.02,0.69]
[1756563072900,26.0,199.01,199.0,0.69]
[1756563073210,30.75952967,199.01,199.0,0.69]
[1756563073598,4.75952967,199.01,199.0,0.69]
[1756563074115,4.75952967,199.01,198.95,123.84633976]
[1756563074116,4.75952967,199.01,198.95,84.82633976]
[1756563074421,30.75952967,199.0,198.99,0.89]
[1756563074723,15.111447,199.01,198.99,0.89]
[1756563074898,15.111447,199.01,198.99,5.22532755]
[1756563075094,15.111447,199.01,199.0,0.69]
[1756563075321,4.75952967,199.02,199.0,0.69]
[1756563077729,26.0,199.03,199.0,0.69]
[1756563077924,4.75952967,199.02,199.0,0.69]
[1756563078508,4.75952967,199.02,199.01,0.69]
[1756563079904,30.75952967,199.03,199.01,0.69]
[1756563080211,5.025457,199.05,199.01,0.69]
[1756563080414,4.75952967,199.06,199.01,10.47436517]
[1756563080725,4.75952967,199.06,199.02,0.69]
[1756563081232,4.75952967,199.07,199.02,0.69]
[1756563081430,19.19769123,199.12,199.02,0.69]
[1756563081431,2.6265654,199.11,199.04,4.75952967]
[1756563081607,2.6265654,199.11,199.06,4.75952967]
[1756563081805,4.75952967,199.11,199.07,0.69]
[1756563083212,4.75952967,199.1,199.07,0.69]
[1756563084512,4.75952967,199.09,199.04,9.78361633]
[1756563084703,4.75952967,199.08,199.07,0.69]
[1756563085332,4.75952967,199.09,199.07,0.69]
[1756563086212,30.75952967,199.08,199.05,39.02]
[1756563086709,30.75952967,199.08,199.06,0.69]
[1756563086906,15.10612,199.13,199.07,0.69]
[1756563087118,30.75952967,199.1,199.07,0.69]
[1756563087413,4.75952967,199.09,199.07,0.69]
[1756563088924,30.75952967,199.1,199.08,0.69]
[1756563089436,4.75952967,199.1,199.09,0.69]
[1756563089609,4.75952967,199.11,199.09,0.69]
[1756563091310,4.75952967,199.1,199.09,0.69]
[1756563091912,4.81952967,199.1,199.09,0.69]
[1756563092939,0.06,199.1,199.09,0.69]
[1756563093117,4.81952967,199.1,199.09,0.69]
[1756563094233,4.81952967,199.1,199.07,5.02335425]
[1756563094234,4.81952967,199.1,199.05,39.02]
[1756563094535,4.81952967,199.1,199.07,0.67]
[1756563094912,4.75952967,199.08,199.05,39.0]
[1756563095155,4.75952967,199.07,199.05,39.67]
[1756563095317,4.75952967,199.07,199.05,0.67]
[1756563095824,31.33952967,199.06,199.0,0.7]
[1756563096148,30.75952967,199.03,199.0,39.7]
[1756563096332,4.75952967,199.02,199.0,39.7]
[1756563097509,26.0,199.03,199.0,39.7]
[1756563097713,30.75952967,199.03,199.0,39.03]
[1756563097926,30.75952967,199.03,199.01,0.67]
[1756563098459,4.75952967,199.02,199.0,39.03]
[1756563098621,4.75952967,199.02,199.0,39.7]
[1756563098934,30.75952967,199.03,199.0,39.03]
[1756563099326,4.75952967,199.02,199.0,39.03]
[1756563099853,4.75952967,199.02,199.0,39.7]
[1756563100355,4.75952967,199.01,199.0,39.7]
[1756563100547,26.0,199.03,199.0,39.7]
[1756563100548,4.75952967,199.02,199.0,39.7]
[1756563103251,31.02437105,199.03,199.0,39.7]
[1756563103252,26.0,199.03,199.0,39.7]
[1756563103569,4.75952967,199.02,199.0,0.7]
[1756563103862,4.75952967,199.02,199.0,39.7]
[1756563104844,4.75952967,199.02,199.0,0.7]
[1756563105039,4.75952967,199.02,199.0,39.7]
[1756563105748,26.0,199.03,199.01,0.67]
[1756563106139,4.75952967,199.02,199.01,0.67]
[1756563106459,26.0,199.03,199.01,0.67]
[1756563106661,4.75952967,199.02,199.01,0.67]
[1756563107060,4.21947118,199.05,199.02,0.67]
[1756563107369,4.21947118,199.07,199.03,39.0]
[1756563107558,4.75952967,199.08,199.04,0.67]
[1756563108464,4.75952967,199.07,199.04,5.69410453]
[1756563108659,4.75952967,199.07,199.05,0.67]
[1756563108854,4.21947118,199.09,199.06,39.67]
[1756563108855,4.75952967,199.08,199.06,39.67]
[1756563109164,4.75952967,199.09,199.07,0.67]
[1756563109359,4.75952967,199.08,199.06,39.0]
[1756563109746,4.75952967,199.07,199.06,39.67]
[1756563110640,30.27947118,199.1,199.06,39.67]
[1756563110939,4.75952967,199.08,199.06,39.67]
[1756563111150,4.75952967,199.08,199.06,39.0]
[1756563112042,35.88214402,199.1,199.02,0.03]
[1756563112043,31.33952967,199.07,199.02,0.03]
[1756563112242,4.75952967,199.03,199.02,0.03]
[1756563112458,30.75952967,199.03,199.02,0.03]
[1756563112946,26.0,199.03,199.02,0.03]
[1756563113141,30.75952967,199.03,199.02,0.03]
[1756563114648,35.78389785,199.03,199.02,0.03]
[1756563115260,36.36389785,199.03,199.02,0.03]
[1756563118180,35.78389785,199.03,199.02,0.03]
[1756563118369,4.75952967,199.03,199.02,0.7]
[1756563118568,4.75952967,199.04,199.02,39.7]
[1756563118754,4.75952967,199.03,199.02,39.03]
[1756563119371,4.75952967,199.03,199.02,39.7]
[1756563120348,4.75952967,199.05,199.02,44.72462064]
[1756563120670,4.75952967,199.1,199.02,44.72462064]
[1756563120671,4.75952967,199.04,199.03,0.67]
[1756563121680,4.75952967,199.04,199.02,0.03]
[1756563121861,4.75952967,199.03,199.02,0.03]
[1756563122771,4.75952967,199.03,199.02,0.72]
[1756563126585,4.75952967,199.03,199.02,0.03]
[1756563127081,9.78389785,199.03,199.02,0.03]
[1756563130484,14.54342752,199.03,199.02,0.03]
[1756563130674,13.59559401,199.02,199.0,0.03]
[1756563130877,9.51905934,199.01,199.0,0.03]
[1756563132064,14.54393246,199.01,199.0,0.03]
[1756563132274,29.65842446,199.01,199.0,0.03]
[1756563133789,26.0,198.98,198.95,79.6]
[1756563133966,4.75952967,198.96,198.95,0.69]
[1756563135785,9.78566557,198.96,198.95,0.69]
[1756563136691,9.78566557,198.96,198.93,0.69]
[1756563136875,4.75952967,198.94,198.91,39.69]
[1756563137076,5.0261359,198.96,198.89,79.6]
[1756563137077,4.75952967,198.92,198.89,79.6]
[1756563137389,26.0,198.97,198.88,39.02]
[1756563137390,5.02745053,198.91,198.88,39.02]
[1756563137687,4.75952967,198.89,198.88,39.02]
[1756563137893,4.75952967,198.89,198.86,79.6]
[1756563138076,4.75952967,198.92,198.87,44.46952967]
[1756563138281,4.75952967,198.92,198.88,39.04]
[1756563138490,4.75952967,198.94,198.88,44.48952967]
[1756563138797,4.75952967,198.94,198.89,0.69]
[1756563139172,4.75952967,198.94,198.9,5.02765208]
[1756563139372,4.75952967,198.93,198.91,0.69]
[1756563139573,4.75952967,198.93,198.92,39.06]
[1756563139876,4.75952967,198.93,198.92,39.75]
[1756563141001,4.75952967,198.93,198.92,0.69]
[1756563144593,2.62816752,198.99,198.92,5.71714659]
[1756563144594,7.6535507,198.99,198.92,5.71714659]
[1756563144906,4.75952967,198.94,198.93,0.69]
[1756563149080,4.75952967,198.98,198.93,10.47642355]
[1756563149284,2.62801808,199.01,198.95,4.75952967]
[1756563149492,4.75952967,199.0,198.97,5.02588329]
[1756563149800,4.75952967,198.98,198.96,39.04]
[1756563150001,4.75952967,198.98,198.96,44.06607944]
[1756563150207,4.75952967,198.99,198.97,0.69]
[1756563150605,4.75952967,198.99,198.96,39.04]
[1756563150788,4.75952967,198.99,198.97,0.69]
[1756563151303,0.06,199.0,198.97,0.69]
[1756563151477,0.06,199.0,198.98,5.02563071]
[1756563151680,0.06,199.0,198.99,39.69]
[1756563152491,4.81952967,199.0,198.92,105.6]
[1756563152689,4.75952967,198.96,198.93,39.69]
[1756563152892,4.75952967,198.96,198.94,0.65]
[1756563153103,4.75952967,198.96,198.95,0.65]
[1756563153303,4.75952967,198.97,198.95,0.65]
[1756563153611,4.75952967,198.98,198.96,39.69]
[1756563153820,4.75952967,198.98,198.97,0.65]
[1756563154312,4.75952967,198.98,198.97,39.69]
[1756563157190,4.75952967,198.98,198.95,5.02634695]
[1756563157394,4.75952967,198.96,198.92,119.27]
[1756563157713,4.75952967,198.94,198.92,118.62]
[1756563158110,4.75952967,198.94,198.93,0.65]
[1756563162018,4.75952967,198.94,198.92,39.02]
[1756563162218,4.75952967,198.93,198.92,39.67]
[1756563163418,4.75952967,198.93,198.92,39.06]
[1756563163617,9.78646973,198.93,198.9,79.6]
[1756563163800,26.0,198.96,198.91,39.04]
[1756563163801,26.0,198.92,198.91,39.04]
[1756563164012,30.75952967,198.92,198.91,39.04]
[1756563164996,35.78667626,198.92,198.91,39.04]
[1756563165204,9.78667626,198.92,198.91,39.04]
[1756563165699,9.78667626,198.92,198.89,39.06]
[1756563165916,4.75952967,198.9,198.89,39.71]
[1756563166304,4.75952967,198.9,198.89,39.06]
[1756563166507,30.75952967,198.9,198.86,0.68]
[1756563166703,26.0,198.9,198.87,39.04]
[1756563167013,4.75952967,198.88,198.87,39.04]
[1756563167414,4.75952967,198.88,198.87,39.69]
[1756563167625,4.75952967,198.88,198.86,0.03]
[1756563167840,31.02766316,198.9,198.86,0.03]
[1756563167841,4.75952967,198.87,198.86,0.03]
[1756563167998,30.75952967,198.87,198.86,0.03]
[1756563168616,4.75952967,198.87,198.86,0.03]
[1756563169207,9.78794018,198.87,198.86,0.03]
[1756563170620,4.75952967,198.9,198.87,0.03]
[1756563170806,4.75952967,198.88,198.87,0.03]
[1756563171732,30.75952967,198.88,198.87,0.03]
[1756563172308,49.38328136,198.88,198.87,0.03]
[1756563172524,13.59559401,198.87,198.86,0.03]
[1756563172731,18.35512368,198.87,198.86,0.03]
[1756563172934,18.35512368,198.87,198.79,39.12]
[1756563173107,4.75952967,198.8,198.79,39.12]
[1756563173826,4.75952967,198.8,198.79,39.77]
[1756563174210,26.0,198.83,198.79,39.77]
[1756563174408,4.75952967,198.81,198.8,0.65]
[1756563174617,26.0,198.83,198.8,0.65]
[1756563174618,4.75952967,198.82,198.8,0.65]
[1756563174802,4.75952967,198.81,198.8,0.65]
[1756563175003,4.75952967,198.81,198.79,39.12]
[1756563175503,4.75952967,198.81,198.8,0.65]
[1756563178924,26.0,198.84,198.8,0.65]
[1756563179230,4.75952967,198.81,198.8,0.65]
[1756563179428,4.75952967,198.83,198.8,5.68018108]
[1756563179744,4.75952967,198.83,198.81,0.65]
[1756563180308,4.75952967,198.83,198.82,0.65]
[1756563180508,4.75952967,198.85,198.82,39.73]
[1756563180716,4.75952967,198.85,198.82,39.08]
[1756563181806,4.75952967,198.85,198.83,5.02942211]
[1756563182000,4.75952967,198.88,198.83,5.02942211]
[1756563182419,4.75952967,198.88,198.83,9.78895178]
[1756563182633,4.75952967,198.88,198.84,0.72]
[1756563182938,2.6288456,198.92,198.85,39.1]
[1756563182939,4.75952967,198.89,198.85,39.1]
[1756563183229,4.75952967,198.89,198.86,0.72]
[1756563183425,4.75952967,198.89,198.87,0.72]
[1756563184230,4.75952967,198.89,198.88,0.72]
[1756563184431,4.75952967,198.89,198.88,39.8]
[1756563184738,4.75952967,198.89,198.88,0.72]
[1756563184913,4.75952967,198.89,198.88,39.08]
[1756563185521,4.75952967,198.91,198.88,39.8]
[1756563185726,4.75952967,198.91,198.89,0.72]
[1756563185928,7.77904764,198.96,198.9,0.72]
[1756563185929,2.62861329,198.96,198.9,0.72]
[1756563186113,4.75952967,198.92,198.91,39.1]
[1756563186837,4.75952967,198.92,198.87,0.72]
[1756563187022,4.75952967,198.89,198.88,39.1]
[1756563188542,4.75952967,198.89,198.88,39.82]
[1756563189550,4.75952967,198.89,198.88,27.203939]
[1756563190844,26.0,198.94,198.88,32.23207057]
[1756563191043,4.75952967,198.92,198.89,0.72]
[1756563191244,4.75952967,198.91,198.89,0.72]
[1756563191621,4.75952967,198.9,198.89,0.72]
[1756563192547,4.75952967,198.91,198.89,0.72]
[1756563192723,4.75952967,198.93,198.89,5.74780221]
[1756563192929,4.75952967,198.95,198.9,5.47952967]
[1756563193149,4.75952967,198.95,198.91,39.78]
[1756563193359,4.75952967,198.95,198.92,0.72]
[1756563193582,4.75952967,198.95,198.91,118.66]
[1756563193746,4.75952967,198.95,198.93,0.72]
[1756563194064,4.75952967,198.94,198.93,0.72]
[1756563194656,4.75952967,198.95,198.93,0.72]
[1756563194847,4.75952967,198.96,198.94,39.06]
[1756563195049,30.75952967,198.97,198.95,0.72]
[1756563195648,4.75952967,198.98,198.96,0.72]
[1756563196039,4.75952967,198.98,198.97,0.72]
[1756563196253,4.75952967,198.98,198.97,39.78]
[1756563196452,4.81952967,199.0,198.97,39.78]
[1756563196757,4.81952967,199.0,198.98,0.72]
[1756563196941,4.75952967,198.99,198.98,0.72]
[1756563197339,4.81952967,199.0,198.98,0.72]
[1756563197544,0.06,199.0,198.99,0.72]
[1756563198266,4.81952967,199.0,198.99,0.72]
[1756563199054,0.06,199.0,198.97,44.80567662]
[1756563199238,4.75952967,198.99,198.98,0.72]
[1756563199442,4.81952967,199.0,198.98,0.72]
[1756563201143,4.81952967,199.0,198.97,39.06]
[1756563201343,0.06,199.0,198.98,0.72]
[1756563201546,4.81952967,199.0,198.99,0.72]
[1756563201755,4.81952967,199.0,198.97,124.40584384]
[1756563201954,4.81952967,199.0,198.98,0.72]
[1756563202154,4.81952967,199.0,198.99,39.02]
[1756563202557,4.81952967,199.0,198.97,79.6]
[1756563202558,5.31952967,199.0,198.97,79.6]
[1756563202741,0.56,199.0,198.98,39.02]
[1756563203266,0.06,199.0,198.98,39.02]
[1756563204059,4.75952967,198.99,198.98,39.02]
[1756563207684,4.75952967,198.99,198.98,39.74]
[1756563208885,0.06,199.0,198.98,39.74]
[1756563209078,4.81952967,199.0,198.94,79.6]
[1756563209387,4.81952967,199.0,198.95,49.5259182]
[1756563209558,4.81952967,199.0,198.96,39.02]
[1756563209759,4.75952967,198.99,198.97,39.02]
[1756563209960,0.06,199.0,198.95,0.72]
[1756563210159,0.06,199.0,198.96,39.74]
[1756563210362,4.75952967,198.99,198.96,39.74]
[1756563210571,4.75952967,198.99,198.97,0.72]
[1756563210777,4.75952967,198.99,198.98,39.02]
[1756563210971,4.75952967,198.99,198.95,0.72]
[1756563211283,4.75952967,198.97,198.96,39.02]
[1756563211789,4.75952967,198.97,198.96,39.7]
[1756563212086,4.75952967,198.98,198.96,39.7]
[1756563212287,4.75952967,198.98,198.96,39.02]
[1756563212590,4.75952967,198.98,198.97,0.68]
[1756563212959,0.06,199.0,198.97,0.68]
[1756563213280,0.06,199.0,198.98,39.02]
[1756563213472,0.06,199.0,198.99,0.68]
[1756563213972,0.06,199.0,198.99,5.70537815]
[1756563214592,4.31952967,199.01,198.99,5.70537815]
[1756563214790,4.31952967,199.01,199.0,39.7]
[1756563214978,4.31952967,199.01,199.0,39.02]
[1756563215688,4.31952967,199.01,198.98,5.0255914]
[1756563215889,4.31952967,199.01,198.99,44.72537253]
[1756563216108,4.75952967,199.01,198.99,39.7]
[1756563217192,4.75952967,199.01,199.0,0.68]
[1756563217971,4.75952967,199.01,198.99,39.02]
[1756563218704,4.75952967,199.01,199.0,39.02]
[1756563219876,4.75952967,199.01,198.98,118.62]
[1756563220078,4.75952967,198.99,198.98,118.62]
[1756563221075,4.75952967,198.99,198.98,79.6]
[1756563221274,4.75952967,198.99,198.98,118.62]
[1756563223495,4.75952967,198.99,198.98,39.02]
[1756563225002,4.75952967,198.99,198.98,39.7]
[1756563226699,4.81952967,198.99,198.98,39.7]
[1756563228194,4.81952967,198.99,198.98,39.02]
[1756563228702,4.81952967,198.99,198.98,39.7]
[1756563230798,0.06,198.99,198.98,39.7]
[1756563231120,0.06,198.99,198.98,44.72563071]
[1756563232013,0.06,198.99,198.98,49.48516038]
[1756563236909,0.06,198.99,198.98,5.70563071]
[1756563237109,0.06,198.99,198.98,44.70563071]
[1756563237288,0.06,198.99,198.98,124.30563071]
[1756563239196,0.06,198.99,198.98,123.62563071]
[1756563239786,0.06,198.99,198.98,124.30563071]
[1756563240191,0.06,198.99,198.98,118.6]
[1756563240391,4.81952967,198.99,198.98,118.6]
[1756563241594,0.06,198.99,198.98,118.6]
[1756563242402,0.06,198.99,198.98,124.28563071]
[1756563242916,0.06,198.99,198.98,123.62563071]
[1756563243119,4.81952967,198.99,198.95,85.28634375]
[1756563243420,9.0013205,198.98,198.96,39.0]
[1756563243803,9.0013205,198.98,198.96,39.66]
[1756563244218,9.0013205,198.98,198.94,5.02664119]
[1756563244422,4.75952967,198.97,198.95,39.0]
[1756563244620,4.75952967,198.97,198.95,39.66]
[1756563245320,4.75952967,198.97,198.96,0.66]
[1756563245504,9.0013205,198.98,198.96,0.66]
[1756563245707,9.0013205,198.98,198.97,39.0]
[1756563247917,14.52695818,198.98,198.96,0.03]
[1756563248224,10.28541296,198.97,198.96,0.03]
[1756563249318,5.25952967,198.97,198.96,0.03]
[1756563251226,31.02568565,198.98,198.96,0.03]
[1756563251429,5.25952967,198.97,198.96,0.03]
[1756563252131,10.28541296,198.97,198.96,0.03]